lending/lending_fUSD_20250913
["ID","MTS","AMOUNT","RATE_DAILY","PERIOD"]
[385294529,1757753454214,-400.0,0.00031726,2]
[385294530,1757753454224,-400.0,0.00031726,2]
[385294531,1757753454233,-462.56,0.00031726,2]
[385294532,1757753454243,-400.0,0.00031726,2]
[385294533,1757753454253,-400.0,0.00031726,2]
[385294534,1757753454262,-803.43,0.00031726,2]
[385294535,1757753454275,-400.0,0.00031726,2]
[385294536,1757753454284,-613.98,0.00031726,2]
[385294537,1757753454293,-437.11,0.00031726,2]
[385294538,1757753454304,-1356.78,0.00031726,2]
[385294539,1757753454314,-400.0,0.00031726,2]
[385294540,1757753454324,-400.0,0.00031726,2]
[385294541,1757753454334,-2432.94,0.00031726,2]
[385294542,1757753454344,-400.0,0.00031726,2]
[385294543,1757753454355,-448.88,0.00031726,2]
[385294544,1757753454364,-400.0,0.00031726,2]
[385294545,1757753454373,-435.21928485,0.00031726,2]
[385294546,1757753454383,-400.0,0.00031726,2]
[385294547,1757753454392,-429.03190887,0.00031726,2]
[385294548,1757753454402,-400.0,0.00031726,2]
[385294549,1757753454411,-400.0,0.00031726,2]
[385294550,1757753454422,-996.04,0.00031726,2]
[385294551,1757753454432,-400.0,0.00031726,2]
[385294552,1757753454444,-400.0,0.00031726,2]
[385294553,1757753454453,-617.67,0.00031726,2]
[385294554,1757753454463,-579.49,0.00031726,2]
[385294555,1757753454472,-907.36,0.00031726,2]
[385294556,1757753454482,-636.59,0.00031726,2]
[385294557,1757753454491,-1062.32,0.00031726,2]
[385294558,1757753454501,-753.78,0.00031726,2]
[385294559,1757753454511,-400.0,0.00031726,2]
[385294560,1757753454521,-606.41,0.00031726,2]
[385294561,1757753454530,-400.0,0.00031726,2]
[385294562,1757753454540,-469.35,0.00031726,2]
[385294563,1757753454549,-402.24694005,0.00031726,2]
[385294564,1757753454559,-406.10485965,0.00031726,2]
[385294565,1757753454568,-555.29,0.00031726,2]
[385294566,1757753454578,-716.42,0.00031726,2]
[385294567,1757753454587,-778.74,0.00031726,2]
[385294568,1757753454596,-1128.61,0.00031726,2]
[385294569,1757753454606,-498.84,0.00031726,2]
[385294570,1757753454615,-400.0,0.00031726,2]
[385294571,1757753454625,-1505.72,0.00031726,2]
[385294572,1757753454635,-915.34,0.00031726,2]
[385294573,1757753454645,-830.17,0.00031726,2]
[385294574,1757753454655,-400.0,0.00031726,2]
[385294575,1757753454664,-956.97,0.00031726,2]
[385294576,1757753454674,-400.0,0.00031726,2]
[385294577,1757753454683,-485.3,0.00031726,2]
[385294578,1757753454693,-542.78,0.00031726,2]
[385294579,1757753454703,-400.0,0.00031726,2]
[385294580,1757753454713,-1319.26,0.00031726,2]
[385294581,1757753454722,-567.02,0.00031726,2]
[385294582,1757753454731,-782.45,0.00031726,2]
[385294583,1757753454741,-400.0,0.00031726,2]
[385294584,1757753454751,-537.36,0.00031726,2]
[385294585,1757753454760,-2183.08,0.00031726,2]
[385294586,1757753454769,-719.48,0.00031726,2]
[385294587,1757753454778,-400.0,0.00031726,2]
[385294588,1757753454788,-400.0,0.00031726,2]
[385294589,1757753454798,-671.03,0.00031726,2]
[385294590,1757753454808,-400.0,0.00031726,2]
[385294591,1757753454818,-400.0,0.00031726,2]
[385294592,1757753454827,-1316.04,0.00031726,2]
[385294593,1757753454837,-1220.74,0.00031726,2]
[385294594,1757753454846,-400.0,0.00031726,2]
[385294595,1757753454855,-400.0,0.00031726,2]
[385294596,1757753454865,-400.0,0.00031726,2]
[385294597,1757753454874,-534.37,0.00031726,2]
[385294598,1757753454884,-400.0,0.00031726,2]
[385294599,1757753454893,-400.0,0.00031726,2]
[385294600,1757753454904,-400.0,0.00031726,2]
[385294601,1757753454914,-554.07,0.00031726,2]
[385294602,1757753454924,-400.0,0.00031726,2]
[385294603,1757753454934,-400.0,0.00031726,2]
[385294604,1757753454943,-400.0,0.00031726,2]
[385294605,1757753454953,-400.0,0.00031726,2]
[385294606,1757753454962,-400.0,0.00031726,2]
[385294607,1757753454972,-400.0,0.00031726,2]
[385294608,1757753454981,-691.43,0.00031726,2]
[385294609,1757753454991,-400.0,0.00031726,2]
[385294610,1757753455199,-300.0,0.00031728,10]
[385294611,1757753455209,-700.0,0.00031728,10]
[385294612,1757753455219,-400.0,0.00031728,2]
[385294613,1757753455230,-400.0,0.00031728,2]
[385294614,1757753455241,-400.0,0.00031728,2]
[385294615,1757753455251,-400.0,0.00031728,2]
[385294616,1757753455260,-400.0,0.00031728,2]
[385294617,1757753455270,-405.4970592,0.00031728,2]
[385294618,1757753455280,-404.25004097,0.00031728,2]
[385294619,1757753455289,-354.07683942,0.00031728,2]
[385294620,1757753455299,-400.0,0.00031728,2]
[385294621,1757753455307,-400.0,0.00031728,2]
[385294622,1757753455316,-400.0,0.00031728,2]
[385294623,1757753455328,-400.0,0.00031728,2]
[385294624,1757753455337,-500.0,0.00031728,2]
[385294625,1757753455345,-562.13,0.00031728,2]
[385294626,1757753455355,-605.71,0.00031728,2]
[385294627,1757753455364,-400.0,0.00031728,2]
[385294628,1757753455373,-501.09,0.00031728,2]
[385294629,1757753455383,-971.11,0.00031728,2]
[385294630,1757753455392,-400.0,0.00031728,2]
[385294631,1757753455402,-300.0,0.00031728,2]
[385294632,1757753455412,-402.3307958,0.00031728,2]
[385294633,1757753455423,-452.51,0.00031728,2]
[385294634,1757753455432,-644.89,0.00031728,2]
[385294635,1757753455443,-744.77,0.00031728,2]
[385294636,1757753455453,-400.0,0.00031728,2]
[385294637,1757753455471,-465.04,0.00031728,2]
[385294638,1757753455488,-644.72,0.00031728,2]
[385294639,1757753455497,-400.0,0.00031728,2]
[385294640,1757753455506,-765.24,0.00031728,2]
[385294641,1757753455515,-703.93,0.00031728,2]
[385294642,1757753455524,-976.84,0.00031728,2]
[385294643,1757753455533,-400.0,0.00031728,2]
[385294644,1757753455542,-400.0,0.00031728,2]
[385294645,1757753455552,-400.0,0.00031728,2]
[385294646,1757753455561,-608.15,0.00031728,2]
[385294647,1757753455570,-724.38,0.00031728,2]
[385294648,1757753455579,-400.0,0.00031728,2]
[385294649,1757753455589,-598.95,0.00031728,2]
[385294650,1757753455599,-616.48,0.00031728,2]
[385294651,1757753455608,-401.97,0.00031728,2]
[385294652,1757753455617,-445.5,0.00031728,2]
[385294653,1757753455626,-400.0,0.00031728,2]
[385294654,1757753455636,-400.0,0.00031728,2]
[385294655,1757753455645,-400.0,0.00031728,2]
[385294656,1757753455654,-498.56,0.00031728,2]
[385294657,1757753455664,-400.0,0.00031728,2]
[385294658,1757753455673,-677.59,0.00031728,2]
[385294659,1757753455682,-594.29,0.00031728,2]
[385294660,1757753455692,-625.57,0.00031728,2]
[385294661,1757753455701,-400.0,0.00031728,2]
[385294662,1757753455710,-400.0,0.00031728,2]
[385294663,1757753455719,-400.0,0.00031728,2]
[385294664,1757753455729,-699.85,0.00031728,2]
[385294665,1757753455738,-737.98,0.00031728,2]
[385294666,1757753455746,-400.0,0.00031728,2]
[385294667,1757753455755,-400.0,0.00031728,2]
[385294668,1757753455765,-400.0,0.00031728,2]
[385294669,1757753455774,-593.7,0.00031728,2]
[385294670,1757753455783,-728.36,0.00031728,2]
[385294671,1757753455792,-1043.06,0.00031728,2]
[385294672,1757753455801,-732.81,0.00031728,2]
[385294673,1757753455810,-694.85,0.00031728,2]
[385294674,1757753455819,-641.84,0.00031728,2]
[385294675,1757753455828,-759.25,0.00031728,2]
[385294676,1757753455837,-604.1,0.00031728,2]
[385294677,1757753455846,-400.0,0.00031728,2]
[385294678,1757753455855,-400.0,0.00031728,2]
[385294679,1757753455864,-624.61,0.00031728,2]
[385294680,1757753455873,-716.92,0.00031728,2]
[385294681,1757753455883,-400.0,0.00031728,2]
[385294682,1757753455892,-469.05,0.00031728,2]
[385294683,1757753455901,-400.0,0.00031728,2]
[385294684,1757753455911,-583.43,0.00031728,2]
[385294685,1757753455920,-580.0,0.00031728,2]
[385294686,1757753455929,-400.0,0.00031728,2]
[385294687,1757753455938,-410.27,0.00031728,2]
[385294688,1757753455947,-400.0,0.00031728,2]
[385294689,1757753455956,-1255.03,0.00031728,2]
[385294690,1757753455965,-500.0,0.00031728,2]
[385294691,1757753455975,-675.11,0.00031728,2]
[385294692,1757753455984,-676.43,0.00031728,2]
[385294693,1757753455995,-1271.61,0.00031728,2]
[385294694,1757753456004,-713.69,0.00031728,2]
[385294695,1757753456013,-1024.1,0.00031728,2]
[385294696,1757753456022,-777.45,0.00031728,2]
[385294697,1757753456032,-400.0,0.00031728,2]
[385294698,1757753456041,-607.56,0.00031728,2]
[385294699,1757753456050,-500.0,0.00031728,2]
[385294700,1757753456060,-1655.7,0.00031728,2]
[385294701,1757753456069,-2778.98,0.00031728,2]
[385294702,1757753456077,-400.0,0.00031728,2]
[385294703,1757753456087,-716.72,0.00031728,2]
[385294704,1757753456096,-956.33,0.00031728,2]
[385294705,1757753456105,-891.7,0.00031728,2]
[385294706,1757753456114,-400.0,0.00031728,2]
[385294707,1757753456123,-400.0,0.00031728,2]
[385294708,1757753456132,-400.0,0.00031728,2]
[385294709,1757753456141,-432.81,0.00031728,2]
[385294710,1757753456150,-400.0,0.00031728,2]
[385294711,1757753456160,-702.8,0.00031728,2]
[385294712,1757753456169,-685.04,0.00031728,2]
[385294713,1757753456178,-540.24,0.00031728,2]
[385294714,1757753456187,-647.89565627,0.00031728,2]
[385294715,1757753456196,-621.03,0.00031728,2]
[385294716,1757753456205,-803.91,0.00031728,2]
[385294717,1757753456215,-775.5,0.00031728,2]
[385294718,1757753456224,-663.44,0.00031728,2]
[385294719,1757753456233,-400.0,0.00031728,2]
[385294720,1757753456242,-500.0,0.00031728,2]
[385294721,1757753456251,-582.85,0.00031728,2]
[385294722,1757753456260,-632.51891139,0.00031729,2]
[385294723,1757753456270,-521.32582884,0.00031729,2]
[385294724,1757753456280,-400.0,0.00031729,2]
[385294725,1757753456290,-404.44525121,0.00031729,2]
[385294726,1757753456299,-400.0,0.00031729,2]
[385294727,1757753456308,-684.68,0.00031729,2]
[385294728,1757753456319,-403.61377405,0.00031729,2]
[385294729,1757753456331,-400.0,0.00031729,2]
[385294730,1757753456341,-400.0,0.00031729,2]
[385294731,1757753456357,-400.0,0.00031729,2]
[385294732,1757753456366,-400.0,0.00031729,2]
[385294733,1757753456375,-400.0,0.00031729,2]
[385294734,1757753456384,-400.0,0.00031729,2]
[385294735,1757753456393,-400.0,0.00031729,2]
[385294736,1757753456402,-403.7777178,0.00031729,2]
[385294737,1757753456411,-400.0,0.00031729,2]
[385294738,1757753456420,-400.0,0.00031729,2]
[385294739,1757753456429,-400.0,0.00031729,2]
[385294740,1757753456440,-400.0,0.00031729,2]
[385294741,1757753456449,-502.68,0.00031729,2]
[385294742,1757753456458,-400.0,0.00031729,2]
[385294743,1757753456468,-400.0,0.00031729,2]
[385294744,1757753456477,-400.0,0.00031729,2]
[385294745,1757753456486,-444.16,0.00031729,2]
[385294746,1757753456495,-400.0,0.00031729,2]
[385294747,1757753456504,-400.0,0.00031729,2]
[385294748,1757753456514,-400.0,0.00031729,2]
[385294749,1757753456523,-407.25,0.00031729,2]
[385294750,1757753456532,-405.46,0.00031729,2]
[385294751,1757753456541,-400.0,0.00031729,2]
[385294752,1757753456551,-400.0,0.00031729,2]
[385294753,1757753456560,-400.0,0.00031729,2]
[385294754,1757753456569,-400.0,0.00031729,2]
[385294755,1757753456578,-505.67,0.00031729,2]
[385294756,1757753456587,-400.0,0.00031729,2]
[385294757,1757753456596,-400.0,0.00031729,2]
[385294758,1757753456605,-400.0,0.00031729,2]
[385294759,1757753456614,-400.0,0.00031729,2]
[385294760,1757753456623,-400.0,0.00031729,2]
[385294761,1757753456632,-400.0,0.00031729,2]
[385294762,1757753456641,-274.51310637,0.00031729,2]
[385294763,1757753456650,-400.0,0.00031729,2]
[385294764,1757753456659,-400.0,0.00031729,2]
[385294765,1757753456668,-400.0,0.00031729,2]
[385294766,1757753456678,-400.0,0.00031729,2]
[385294767,1757753456686,-400.0,0.00031729,2]
[385294768,1757753456695,-400.0,0.00031729,2]
[385294769,1757753456704,-400.0,0.00031729,2]
[385294770,1757753456714,-417.02,0.00031729,2]
[385294771,1757753456723,-400.0,0.00031729,2]
[385294772,1757753456732,-400.0,0.00031729,2]
[385294773,1757753456741,-400.0,0.00031729,2]
[385294774,1757753456750,-400.0,0.00031729,2]
[385294775,1757753456759,-400.0,0.00031729,2]
[385294776,1757753456768,-400.0,0.00031729,2]
[385294777,1757753456778,-400.0,0.00031729,2]
[385294778,1757753456788,-400.0,0.00031729,2]
[385294779,1757753456797,-500.0,0.00031729,2]
[385294780,1757753456807,-400.0,0.00031729,2]
[385294781,1757753456816,-625.49,0.00031729,2]
[385294782,1757753456825,-400.0,0.00031729,2]
[385294783,1757753456835,-400.0,0.00031729,2]
[385294784,1757753456844,-400.0,0.00031729,2]
[385294785,1757753456853,-400.0,0.00031729,2]
[385294786,1757753456863,-400.0,0.00031729,2]
[385294787,1757753456872,-444.36,0.00031729,2]
[385294788,1757753456882,-300.0,0.00031729,2]
[385294789,1757753456891,-400.0,0.00031729,2]
[385294790,1757753456900,-400.0,0.00031729,2]
[385294791,1757753456909,-400.0,0.00031729,2]
[385294792,1757753456918,-400.0,0.00031729,2]
[385294793,1757753456927,-319.16609514,0.00031729,2]
[385294794,1757753456936,-400.0,0.00031729,2]
[385294795,1757753456946,-402.76473089,0.00031729,2]
[385294796,1757753456955,-709.25,0.00031729,2]
[385294797,1757753456964,-404.55953688,0.00031729,2]
[385294798,1757753456974,-400.0,0.00031729,2]
[385294799,1757753456983,-400.0,0.00031729,2]
[385294800,1757753456992,-400.0,0.00031729,2]
[385294801,1757753457001,-563.62,0.00031729,2]
[385294802,1757753457011,-403.31261213,0.00031729,2]
[385294803,1757753457020,-400.0,0.00031729,2]
[385294804,1757753457029,-400.0,0.00031729,2]
[385294805,1757753457038,-1000.0,0.00031729,120]
[385294806,1757753457047,-400.0,0.00031729,2]
[385294807,1757753457056,-400.0,0.00031729,2]
[385294808,1757753457065,-400.0,0.00031729,2]
[385294809,1757753457075,-400.0,0.00031729,2]
[385294810,1757753457084,-400.0,0.00031729,2]
[385294811,1757753457093,-400.0,0.00031729,2]
[385294812,1757753457103,-400.0,0.00031729,2]
[385294813,1757753457112,-404.76,0.00031729,2]
[385294814,1757753457121,-400.0,0.00031729,2]
[385294815,1757753457131,-400.0,0.00031729,2]
[385294816,1757753457140,-400.0,0.00031729,2]
[385294817,1757753457150,-400.0,0.00031729,2]
[385294818,1757753457159,-400.0,0.00031729,2]
[385294819,1757753457168,-400.0,0.00031729,2]
[385294820,1757753457177,-400.0,0.00031729,2]
[385294821,1757753457186,-786.72,0.00031729,2]
[385294822,1757753457195,-546.12,0.00031729,2]
[385294823,1757753457204,-659.7,0.00031729,2]
[385294824,1757753457213,-400.0,0.00031729,2]
[385294825,1757753457222,-400.0,0.00031729,2]
[385294826,1757753457231,-400.0,0.00031729,2]
[385294827,1757753457240,-633.37,0.00031729,2]
[385294828,1757753457248,-400.0,0.00031729,2]
[385294829,1757753457257,-400.0,0.00031729,2]
[385294830,1757753457266,-400.0,0.00031729,2]
[385294831,1757753457275,-400.0,0.00031729,2]
[385294832,1757753457284,-400.0,0.00031729,2]
[385294833,1757753457293,-400.0,0.00031729,2]
[385294834,1757753457302,-400.0,0.00031729,2]
[385294835,1757753457311,-402.0872147,0.00031729,2]
[385294836,1757753457320,-400.0,0.00031729,2]
[385294837,1757753457328,-400.0,0.00031729,2]
[385294838,1757753457337,-516.45,0.00031729,2]
[385294839,1757753457346,-509.96987302,0.00031729,2]
[385294840,1757753457355,-400.0,0.00031729,2]
[385294841,1757753457364,-453.04,0.00031729,2]
[385294842,1757753457373,-584.9,0.00031729,2]
[385294843,1757753457382,-400.0,0.00031729,2]
[385294844,1757753457391,-400.0,0.00031729,2]
[385294845,1757753457400,-400.0,0.00031729,2]
[385294846,1757753457409,-400.0,0.00031729,2]
[385294847,1757753457418,-400.0,0.00031729,2]
[385294848,1757753457427,-714.9,0.00031729,2]
[385294849,1757753457436,-400.0,0.00031729,2]
[385294850,1757753457445,-400.0,0.00031729,2]
[385294851,1757753457454,-400.0,0.00031729,2]
[385294852,1757753457463,-400.0,0.00031729,2]
[385294853,1757753457472,-400.0,0.00031729,2]
[385294854,1757753457481,-400.0,0.00031729,2]
[385294855,1757753457491,-286.44027466,0.00031729,2]
[385294856,1757753457499,-400.0,0.00031729,2]
[385294857,1757753457508,-400.0,0.00031729,2]
[385294858,1757753457518,-400.0,0.00031729,2]
[385294859,1757753457527,-754.52,0.00031729,2]
[385294860,1757753457536,-400.0,0.00031729,2]
[385294861,1757753457545,-581.4,0.00031729,2]
[385294862,1757753457554,-503.04,0.00031729,2]
[385294863,1757753457563,-707.14,0.00031729,2]
[385294864,1757753457572,-400.0,0.00031729,2]
[385294865,1757753457582,-400.0,0.00031729,2]
[385294866,1757753457591,-1135.55,0.00031729,2]
[385294867,1757753457600,-400.0,0.00031729,2]
[385294868,1757753457609,-400.0,0.00031729,2]
[385294869,1757753457619,-400.0,0.00031729,2]
[385294870,1757753457628,-400.0,0.00031729,2]
[385294871,1757753457638,-400.0,0.00031729,2]
[385294872,1757753457647,-400.0,0.00031729,2]
[385294873,1757753457656,-400.0,0.00031729,2]
[385294874,1757753457666,-660.91,0.00031729,2]
[385294875,1757753457675,-400.0,0.00031729,2]
[385294876,1757753457684,-400.0,0.00031729,2]
[385294877,1757753457694,-400.0,0.00031729,2]
[385294878,1757753457705,-400.0,0.00031729,2]
[385294879,1757753457714,-400.0,0.00031729,2]
[385294880,1757753457723,-400.0,0.00031729,2]
[385294881,1757753457731,-400.0,0.00031729,2]
[385294882,1757753457740,-400.0,0.00031729,2]
[385294883,1757753457750,-400.0,0.00031729,2]
[385294884,1757753457759,-400.0,0.00031729,2]
[385294885,1757753457768,-400.0,0.00031729,2]
[385294886,1757753457777,-650.46,0.00031729,2]
[385294887,1757753457786,-472.58,0.00031729,2]
[385294888,1757753457795,-400.0,0.00031729,2]
[385294889,1757753457804,-400.0,0.00031729,2]
[385294890,1757753457813,-400.0,0.00031729,2]
[385294891,1757753457822,-400.0,0.00031729,2]
[385294892,1757753457832,-400.0,0.00031729,2]
[385294893,1757753457841,-930.5,0.00031729,2]
[385294894,1757753457850,-400.0,0.00031729,2]
[385294895,1757753457860,-500.0,0.00031729,2]
[385294896,1757753457869,-506.66,0.00031729,2]
[385294897,1757753457879,-400.0,0.00031729,2]
[385294898,1757753457889,-400.0,0.00031729,2]
[385294899,1757753457898,-400.0,0.00031729,2]
[385294900,1757753457908,-400.0,0.00031729,2]
[385294901,1757753457918,-400.0,0.00031729,2]
[385294902,1757753457928,-400.0,0.00031729,2]
[385294903,1757753457937,-400.0,0.00031729,2]
[385294904,1757753457947,-400.0,0.00031729,2]
[385294905,1757753457957,-427.81,0.00031729,2]
[385294906,1757753457965,-400.0,0.00031729,2]
[385294907,1757753457974,-400.0,0.00031729,2]
[385294908,1757753457983,-400.0,0.00031729,2]
[385294909,1757753457992,-400.0,0.00031729,2]
[385294910,1757753458001,-400.0,0.00031729,2]
[385294911,1757753458010,-400.0,0.00031729,2]
[385294912,1757753458019,-400.0,0.00031729,2]
[385294913,1757753458028,-400.0,0.00031729,2]
[385294914,1757753458038,-400.0,0.00031729,2]
[385294915,1757753458047,-400.0,0.00031729,2]
[385294916,1757753458056,-400.0,0.00031729,2]
[385294917,1757753458065,-400.0,0.00031729,2]
[385294918,1757753458075,-400.0,0.00031729,2]
[385294919,1757753458084,-400.0,0.00031729,2]
[385294920,1757753458093,-400.0,0.00031729,2]
[385294921,1757753458102,-400.0,0.00031729,2]
[385294922,1757753458111,-400.0,0.00031729,2]
[385294923,1757753458119,-400.0,0.00031729,2]
[385294924,1757753458128,-400.0,0.00031729,2]
[385294925,1757753458137,-400.0,0.00031729,2]
[385294926,1757753458146,-400.0,0.00031729,2]
[385294927,1757753458155,-400.0,0.00031729,2]
[385294928,1757753458164,-400.0,0.00031729,2]
[385294929,1757753458173,-404.22971227,0.00031729,2]
[385294930,1757753458182,-400.0,0.00031729,2]
[385294931,1757753458191,-400.0,0.00031729,2]
[385294932,1757753458200,-400.0,0.00031729,2]
[385294933,1757753458209,-729.4,0.00031729,2]
[385294934,1757753458218,-400.0,0.00031729,2]
[385294935,1757753458227,-400.0,0.00031729,2]
[385294936,1757753458236,-400.0,0.00031729,2]
[385294937,1757753458245,-600.95,0.00031729,2]
[385294938,1757753458254,-400.0,0.00031729,2]
[385294939,1757753458263,-400.0,0.00031729,2]
[385294940,1757753458274,-467.57,0.00031729,2]
[385294941,1757753458285,-400.0,0.00031729,2]
[385294942,1757753458294,-400.0,0.00031729,2]
[385294943,1757753458303,-400.0,0.00031729,2]
[385294944,1757753458312,-662.52,0.00031729,2]
[385294945,1757753458322,-400.0,0.00031729,2]
[385294946,1757753458331,-400.0,0.00031729,2]
[385294947,1757753458340,-400.0,0.00031729,2]
[385294948,1757753458350,-198.99048477,0.00031729,2]
[385294949,1757753458360,-400.0,0.00031729,2]
[385294950,1757753458370,-400.0,0.00031729,2]
[385294951,1757753458379,-400.0,0.00031729,2]
[385294952,1757753458388,-400.0,0.00031729,2]
[385294953,1757753458397,-578.22,0.00031729,2]
[385294954,1757753458406,-400.0,0.00031729,2]
[385294955,1757753458416,-400.0,0.00031729,2]
[385294956,1757753458426,-400.0,0.00031729,2]
[385294957,1757753458435,-405.53,0.00031729,2]
[385294958,1757753458447,-400.0,0.00031729,2]
[385294959,1757753458647,-400.0,0.00031729,2]
[385294960,1757753458658,-400.0,0.00031729,2]
[385294961,1757753458667,-400.0,0.00031729,2]
[385294962,1757753458676,-400.0,0.00031729,2]
[385294963,1757753458685,-609.29,0.00031729,2]
[385294964,1757753458694,-400.0,0.00031729,2]
[385294965,1757753458703,-400.0,0.00031729,2]
[385294966,1757753458712,-400.0,0.00031729,2]
[385294967,1757753458721,-400.0,0.00031729,2]
[385294968,1757753458730,-415.02,0.00031729,2]
[385294969,1757753458740,-400.0,0.00031729,2]
[385294970,1757753458749,-400.0,0.00031729,2]
[385294971,1757753458758,-400.0,0.00031729,2]
[385294972,1757753458767,-661.25,0.00031729,2]
[385294973,1757753458776,-400.0,0.00031729,2]
[385294974,1757753458786,-522.03,0.00031729,2]
[385294975,1757753458795,-400.0,0.00031729,2]
[385294976,1757753458804,-400.0,0.00031729,2]
[385294977,1757753458814,-400.0,0.00031729,2]
[385294978,1757753458823,-400.0,0.00031729,2]
[385294979,1757753458832,-400.0,0.00031729,2]
[385294980,1757753458841,-400.0,0.00031729,2]
[385294981,1757753458850,-400.0,0.00031729,2]
[385294982,1757753458860,-400.0,0.00031729,2]
[385294983,1757753458870,-400.0,0.00031729,2]
[385294984,1757753458879,-400.0,0.00031729,2]
[385294985,1757753458888,-400.0,0.00031729,2]
[385294986,1757753458897,-400.0,0.00031729,2]
[385294987,1757753458907,-400.0,0.00031729,2]
[385294988,1757753458916,-400.0,0.00031729,2]
[385294989,1757753458925,-400.0,0.00031729,2]
[385294990,1757753458934,-400.0,0.00031729,2]
[385294991,1757753458943,-400.0,0.00031729,2]
[385294992,1757753458953,-400.0,0.00031729,2]
[385294993,1757753458962,-400.0,0.00031729,2]
[385294994,1757753458972,-400.0,0.00031729,2]
[385294995,1757753458981,-1399.26140913,0.0003173,2]
[385294996,1757753458990,-500.0,0.00031738,2]
[385294997,1757753458999,-500.0,0.00031738,2]
[385294998,1757753459008,-400.0,0.00031739,2]
[385294999,1757753459018,-387.39742739,0.00031739,2]
[385295000,1757753459027,-400.0,0.00031739,2]
[385295001,1757753459036,-500.0,0.00031739,2]
[385295002,1757753459045,-500.0,0.00031739,2]
[385295003,1757753459054,-500.0,0.00031739,2]
[385295004,1757753459063,-581.4,0.00031739,2]
[385295005,1757753459072,-581.4,0.00031739,2]
[385295006,1757753459082,-504.99,0.00031739,2]
[385295007,1757753459091,-580.96,0.00031739,2]
[385295008,1757753459099,-668.19,0.00031739,2]
[385295009,1757753459108,-400.0,0.00031739,2]
[385295010,1757753459118,-444.18,0.00031739,2]
[385295011,1757753459127,-400.0,0.00031739,2]
[385295012,1757753459136,-594.55,0.00031739,2]
[385295013,1757753459145,-655.96,0.00031739,2]
[385295014,1757753459154,-677.59,0.00031739,2]
[385295015,1757753459163,-400.0,0.00031739,2]
[385295016,1757753459172,-655.3,0.00031739,2]
[385295017,1757753459181,-662.49,0.00031739,2]
[385295018,1757753459190,-570.37,0.00031739,2]
[385295019,1757753459199,-816.79,0.00031739,2]
[385295020,1757753459208,-400.0,0.00031739,2]
[385295021,1757753459218,-950.34,0.00031739,2]
[385295022,1757753459228,-400.0,0.00031739,2]
[385295023,1757753459237,-728.77,0.00031739,2]
[385295024,1757753459247,-466.78,0.00031739,2]
[385295025,1757753459256,-400.0,0.00031739,2]
[385295026,1757753459265,-400.0,0.00031739,2]
[385295027,1757753459275,-400.0,0.00031739,2]
[385295028,1757753459284,-404.35001246,0.00031739,2]